[Event "Open Cappelle-la-Grande"]
[Date "2026.02.25"]
[White "Ruzhansky, Elias"]
[Black "Moksh Amit Doshi"]
[WhiteElo "2462"]
[BlackElo "2354"]
[Round "8.8.8"]
[Result "1/2-1/2"]
[TimeControl "40/5400+30:1800+30"]

e4 {[%clk 1:30:53]} c5 {[%clk 1:30:55]} Nf3 {[%clk 1:31:08]} d6 {[%clk 1:31:18]}
d4 {[%clk 1:31:24]} cxd4 {[%clk 1:31:41]} Nxd4 {[%clk 1:31:45]} Nf6 {[%clk
1:32:05]} Nc3 {[%clk 1:32:04]} a6 {[%clk 1:32:30]} Bd3 {[%clk 1:32:20]} g6
{[%clk 1:32:53]} f3 {[%clk 1:31:09]} Nc6 {[%clk 1:33:15]} Be3 {[%clk 1:31:14]}
Nxd4 {[%clk 1:33:36]} Bxd4 {[%clk 1:31:36]} e5 {[%clk 1:34:00]} Be3 {[%clk
1:31:26]} Be6 {[%clk 1:34:22]} Qd2 {[%clk 1:29:27]} d5 {[%clk 1:33:02]} exd5
{[%clk 1:29:13]} Nxd5 {[%clk 1:33:24]} Nxd5 {[%clk 1:19:45]} Qxd5 {[%clk
1:33:45]} c4 {[%clk 1:20:02]} Qc6 {[%clk 1:34:04]} Qa5 {[%clk 1:19:42]} Bd6
{[%clk 1:34:24]} c5 {[%clk 1:17:29]} Bc7 {[%clk 1:34:44]} Qc3 {[%clk 1:17:45]}
O-O {[%clk 1:34:47]} O-O {[%clk 1:16:18]} Rfd8 {[%clk 1:27:22]} a4 {[%clk
1:07:00]} Ba5 {[%clk 1:20:56]} Qxa5 {[%clk 0:54:11]} Rxd3 {[%clk 1:10:39]} Rfe1
{[%clk 0:54:29]} Rad8 {[%clk 0:57:03]} Qb4 {[%clk 0:48:13]} f6 {[%clk 0:49:43]}
Qh4 {[%clk 0:43:04]} Bb3 {[%clk 0:39:09]} Qb4 {[%clk 0:33:42]} Bf7 {[%clk
0:36:21]} Qa5 {[%clk 0:32:44]} g5 {[%clk 0:32:08]} b4 {[%clk 0:31:13]} Be8
{[%clk 0:29:49]} Qb6 {[%clk 0:18:25]} Qxb6 {[%clk 0:27:39]} cxb6 {[%clk
0:18:48]} Bc6 {[%clk 0:28:00]} Ra2 {[%clk 0:15:40]} Kf7 {[%clk 0:27:42]} a5
{[%clk 0:15:40]} h6 {[%clk 0:25:01]} Kf2 {[%clk 0:15:08]} f5 {[%clk 0:21:51]}
Ree2 {[%clk 0:14:24]} R8d7 {[%clk 0:20:48]} Rad2 {[%clk 0:10:05]} f4 {[%clk
0:18:17]} Rxd3 {[%clk 0:09:43]} Rxd3 {[%clk 0:18:42]} Bc1 {[%clk 0:09:56]} Ke6
{[%clk 0:15:53]} Bb2 {[%clk 0:09:48]} e4 {[%clk 0:15:16]} fxe4 {[%clk 0:10:04]}
g4 {[%clk 0:15:42]} Bc1 {[%clk 0:08:26]} g3+ {[%clk 0:12:50]} hxg3 {[%clk
0:08:37]} fxg3+ {[%clk 0:13:17]} Ke1 {[%clk 0:08:53]} h5 {[%clk 0:13:41]} Re3
{[%clk 0:08:51]} Rxe3+ {[%clk 0:14:00]} Bxe3 {[%clk 0:09:15]} Bxe4 {[%clk
0:14:20]} Kf1 {[%clk 0:08:59]} Kf5 {[%clk 0:14:16]} Kg1 {[%clk 0:09:01]} Bc6
{[%clk 0:14:36]} Bc5 {[%clk 0:09:25]} h4 {[%clk 0:15:02]} Be7 {[%clk 0:09:42]}
Kg4 {[%clk 0:15:28]} Bf6 {[%clk 0:10:00]}

[Variant "Standard"]
[Site "Europe Echecs"]

[Event "Open Cappelle-la-Grande"]
[Date "2026.02.25"]
[White "Bacrot, Alexandre"]
[Black "Luong Phuong Hanh"]
[WhiteElo "2457"]
[BlackElo "2236"]
[Round "8.8.9"]
[Result "1-0"]
[TimeControl "40/5400+30:1800+30"]

Nf3 {[%clk 1:30:57]} Nf6 {[%clk 1:30:05]} d4 {[%clk 1:31:11]} e6 {[%clk
1:29:30]} c4 {[%clk 1:31:18]} d5 {[%clk 1:29:45]} Nc3 {[%clk 1:31:41]} c5 {[%clk
1:30:05]} e3 {[%clk 1:30:59]} Nc6 {[%clk 1:29:13]} a3 {[%clk 1:31:02]} cxd4
{[%clk 1:22:36]} exd4 {[%clk 1:30:26]} Be7 {[%clk 1:21:44]} Bd3 {[%clk 1:25:35]}
dxc4 {[%clk 1:20:56]} Bxc4 {[%clk 1:26:00]} O-O {[%clk 1:21:19]} O-O {[%clk
1:26:26]} b6 {[%clk 1:21:21]} b4 {[%clk 1:20:01]} Bb7 {[%clk 1:20:55]} Bb2
{[%clk 1:20:25]} Rc8 {[%clk 1:19:39]} Bb3 {[%clk 1:20:46]} Nd5 {[%clk 1:18:17]}
Nxd5 {[%clk 1:15:19]} exd5 {[%clk 1:18:39]} Qd3 {[%clk 1:15:28]} Bf6 {[%clk
1:17:10]} Rfe1 {[%clk 1:01:11]} Qd6 {[%clk 1:13:04]} Re3 {[%clk 0:55:48]} Ne7
{[%clk 1:10:34]} Rae1 {[%clk 0:54:26]} Ng6 {[%clk 1:09:22]} g3 {[%clk 0:52:29]}
Qd7 {[%clk 1:08:59]} Bc2 {[%clk 0:43:00]} Ba6 {[%clk 1:04:02]} Qf5 {[%clk
0:43:13]} Qxf5 {[%clk 1:02:53]} Bxf5 {[%clk 0:43:38]} Rc7 {[%clk 1:03:01]} a4
{[%clk 0:42:01]} Ne7 {[%clk 1:02:17]} Bb1 {[%clk 0:42:27]} Bc8 {[%clk 1:00:10]}
b5 {[%clk 0:37:40]} Be6 {[%clk 1:00:27]} Ba2 {[%clk 0:35:09]} Rc2 {[%clk
0:59:55]} R3e2 {[%clk 0:35:28]} Rfc8 {[%clk 0:56:32]} Bb3 {[%clk 0:34:53]} Rxe2
{[%clk 0:56:36]} Rxe2 {[%clk 0:35:19]} Bg4 {[%clk 0:44:51]} Kg2 {[%clk 0:35:43]}
g6 {[%clk 0:31:04]} Rd2 {[%clk 0:33:21]} Bf5 {[%clk 0:18:40]} Ne5 {[%clk
0:33:37]} Be6 {[%clk 0:16:17]} Nd3 {[%clk 0:30:53]} Nf5 {[%clk 0:10:12]} Nb4
{[%clk 0:30:18]} Bg5 {[%clk 0:09:56]} Rd1 {[%clk 0:30:09]} Ne7 {[%clk 0:09:13]}
h4 {[%clk 0:30:10]} Bf6 {[%clk 0:09:34]} f3 {[%clk 0:27:55]} Nf5 {[%clk
0:09:37]} Kf2 {[%clk 0:28:20]} Be7 {[%clk 0:08:46]} Nc6 {[%clk 0:27:56]} Bd6
{[%clk 0:08:42]} g4 {[%clk 0:23:19]} Ne7 {[%clk 0:06:23]} Ne5 {[%clk 0:22:40]}
Bb4 {[%clk 0:00:33]} Ke2 {[%clk 0:19:17]} f6 {[%clk 0:21:23]} Nd3 {[%clk
0:49:17]} Bd6 {[%clk 0:21:45]} Ke3 {[%clk 0:44:35]} f5 {[%clk 0:19:58]} Rg1
{[%clk 0:42:05]} Rf8 {[%clk 0:18:04]} Bc3 {[%clk 0:41:18]} fxg4 {[%clk 0:14:42]}
fxg4 {[%clk 0:41:35]} h5 {[%clk 0:12:44]} gxh5 {[%clk 0:41:41]} Nf5+ {[%clk
0:13:12]} Ke2 {[%clk 0:41:22]} Nxh4 {[%clk 0:12:28]} Bb4 {[%clk 0:33:59]} Bxb4
{[%clk 0:09:34]} Nxb4 {[%clk 0:34:23]} Re8 {[%clk 0:05:20]} Kd1 {[%clk 0:33:05]}
Kg7 {[%clk 0:05:37]} Nc6 {[%clk 0:33:04]} Kf6 {[%clk 0:04:23]} hxg6 {[%clk
0:33:19]} Nxg6 {[%clk 0:04:29]} Nxa7 {[%clk 0:32:50]} Ne7 {[%clk 0:04:40]} Rf1+
{[%clk 0:32:35]} Kg5 {[%clk 0:04:56]} Rg1+ {[%clk 0:21:15]} Kf6 {[%clk 0:05:24]}
Rh1 {[%clk 0:21:39]} Kg7 {[%clk 0:03:41]} Kd2 {[%clk 0:14:09]} Ra8 {[%clk
0:03:29]} Nc6 {[%clk 0:14:35]} Nxc6 {[%clk 0:03:32]} bxc6 {[%clk 0:15:01]} Rc8
{[%clk 0:03:56]} Rc1 {[%clk 0:12:55]} Rc7 {[%clk 0:04:20]} Ke3 {[%clk 0:10:11]}
Kf6 {[%clk 0:04:49]} Kf4 {[%clk 0:10:35]} Bf7 {[%clk 0:04:43]} Rh1 {[%clk
0:11:02]} Re7 {[%clk 0:03:47]} Rh6+ {[%clk 0:10:43]} Kg7 {[%clk 0:04:05]} Rd6
{[%clk 0:11:09]} Re4+ {[%clk 0:02:31]} Kg5 {[%clk 0:10:25]} Re1 {[%clk 0:02:33]}
Bxd5 {[%clk 0:09:27]} Rg1+ {[%clk 0:02:53]} Kf4 {[%clk 0:09:46]} Rf1+ {[%clk
0:02:42]} Ke3 {[%clk 0:09:59]} Bxd5 {[%clk 0:02:50]} Rxd5 {[%clk 0:10:23]} Rc1
{[%clk 0:03:13]} Rd7+ {[%clk 0:10:43]} Kf6 {[%clk 0:03:37]} d5 {[%clk 0:11:10]}

[Variant "Standard"]
[Site "Europe Echecs"]

[Event "Open Cappelle-la-Grande"]
[Date "2026.02.25"]
[White "Zeneli, Klendi"]
[Black "Lamaze, Simon"]
[WhiteElo "2268"]
[BlackElo "2450"]
[Round "8.8.10"]
[Result "0-1"]
[TimeControl "40/5400+30:1800+30"]

e4 {[%clk 1:30:51]} c5 {[%clk 1:30:52]} Nf3 {[%clk 1:31:08]} d6 {[%clk 1:31:15]}
d4 {[%clk 1:31:30]} cxd4 {[%clk 1:31:41]} Nxd4 {[%clk 1:31:54]} Nf6 {[%clk
1:32:04]} Nc3 {[%clk 1:32:19]} a6 {[%clk 1:32:31]} h3 {[%clk 1:30:52]} e5 {[%clk
1:32:10]} Nb3 {[%clk 1:30:47]} Be6 {[%clk 1:32:26]} Be3 {[%clk 1:28:49]} Be7
{[%clk 1:31:16]} Qe2 {[%clk 1:21:57]} Nbd7 {[%clk 1:25:59]} O-O-O {[%clk
1:15:04]} Rc8 {[%clk 1:20:28]} g4 {[%clk 1:13:13]} h6 {[%clk 1:18:38]} Bg2
{[%clk 1:11:01]} Rxc3 {[%clk 1:16:38]} bxc3 {[%clk 1:11:00]} Qc7 {[%clk
1:14:31]} Rd3 {[%clk 0:55:40]} Nb6 {[%clk 1:09:29]} Kd1 {[%clk 0:47:16]} Na4
{[%clk 1:07:30]} Bd2 {[%clk 0:38:34]} O-O {[%clk 1:06:23]} Ke1 {[%clk 0:30:35]}
Rd8 {[%clk 0:58:28]} f4 {[%clk 0:26:05]} exf4 {[%clk 0:58:39]} Nd4 {[%clk
0:22:17]} Bc4 {[%clk 0:55:41]} Nf5 {[%clk 0:19:18]} Bf8 {[%clk 0:55:34]} Bxf4
{[%clk 0:18:33]} Bxd3 {[%clk 0:55:40]} cxd3 {[%clk 0:17:52]} Nxc3 {[%clk
0:55:44]} Qb2 {[%clk 0:16:40]} Rc8 {[%clk 0:55:12]} Kf2 {[%clk 0:16:27]} g6
{[%clk 0:42:05]} Nxh6+ {[%clk 0:09:46]} Kh7 {[%clk 0:42:02]} Rc1 {[%clk
0:09:57]} Bxh6 {[%clk 0:41:57]} Bxh6 {[%clk 0:10:13]} Kxh6 {[%clk 0:42:23]} g5+
{[%clk 0:10:29]} Kh7 {[%clk 0:42:43]} gxf6 {[%clk 0:10:19]} Nxe4+ {[%clk
0:42:55]} Bxe4 {[%clk 0:10:21]} Qxc1 {[%clk 0:43:16]} Qxc1 {[%clk 0:09:46]} Rxc1
{[%clk 0:43:38]} Bxb7 {[%clk 0:10:13]} Rc2+ {[%clk 0:43:57]} Ke3 {[%clk
0:10:21]} Rxa2 {[%clk 0:43:53]} Bd5 {[%clk 0:10:46]} Ra5 {[%clk 0:43:34]} Bxf7
{[%clk 0:10:45]} Rf5 {[%clk 0:44:02]} Bc4 {[%clk 0:10:35]} a5 {[%clk 0:44:27]}
f7 {[%clk 0:10:28]} Kg7 {[%clk 0:44:53]} Ke4 {[%clk 0:09:58]} Rh5 {[%clk
0:45:15]} Kd4 {[%clk 0:09:27]}

[Variant "Standard"]
[Site "Europe Echecs"]

[Event "Open Cappelle-la-Grande"]
[Date "2026.02.25"]
[White "Raja Rithvik R"]
[Black "Hansen, Soren Bech"]
[WhiteElo "2535"]
[BlackElo "2222"]
[Round "8.8.11"]
[Result "1-0"]
[TimeControl "40/5400+30:1800+30"]

c4 {[%clk 1:30:57]} e6 {[%clk 1:30:29]} g3 {[%clk 1:30:24]} d5 {[%clk 1:30:17]}
Bg2 {[%clk 1:30:49]} d4 {[%clk 1:29:16]} Nf3 {[%clk 1:31:14]} Nc6 {[%clk
1:29:01]} O-O {[%clk 1:31:34]} Bc5 {[%clk 1:28:18]} d3 {[%clk 1:31:55]} a5
{[%clk 1:27:00]} Na3 {[%clk 1:25:29]} Nf6 {[%clk 1:25:24]} e3 {[%clk 1:23:29]}
O-O {[%clk 1:21:17]} Nb5 {[%clk 1:16:30]} e5 {[%clk 1:11:32]} exd4 {[%clk
1:16:27]} Nxd4 {[%clk 1:03:37]} Nxe5 {[%clk 1:15:58]} Nxb5 {[%clk 1:02:42]} cxb5
{[%clk 1:16:24]} Re8 {[%clk 0:58:52]} Bf4 {[%clk 1:08:19]} g5 {[%clk 0:54:02]}
Bxg5 {[%clk 1:08:21]} Rxe5 {[%clk 0:54:19]} Bxf6 {[%clk 1:08:48]} Qxf6 {[%clk
0:54:38]} d4 {[%clk 1:09:15]} Rg5 {[%clk 0:43:58]} h4 {[%clk 1:07:46]} Rf5
{[%clk 0:41:37]} dxc5 {[%clk 1:07:57]} Rxc5 {[%clk 0:41:34]} a4 {[%clk 0:53:45]}
Be6 {[%clk 0:35:51]} Rc1 {[%clk 0:50:08]} Re5 {[%clk 0:28:54]} Bxb7 {[%clk
0:42:31]} Rd8 {[%clk 0:28:54]} Qf3 {[%clk 0:42:48]} Rf5 {[%clk 0:28:13]} Qc3
{[%clk 0:42:42]}

[Variant "Standard"]
[Site "Europe Echecs"]

[Event "Open Cappelle-la-Grande"]
[Date "2026.02.25"]
[White "Carnicelli, Valerio"]
[Black "Marie, Maxime"]
[WhiteElo "2438"]
[BlackElo "2201"]
[Round "8.8.12"]
[Result "1-0"]
[TimeControl "40/5400+30:1800+30"]

e4 {[%clk 1:30:57]} c6 {[%clk 1:30:42]} d4 {[%clk 1:31:23]} d5 {[%clk 1:31:06]}
e5 {[%clk 1:31:50]} c5 {[%clk 1:30:07]} dxc5 {[%clk 1:32:16]} e6 {[%clk
1:30:26]} a3 {[%clk 1:32:42]} Bxc5 {[%clk 1:30:30]} Qg4 {[%clk 1:33:07]} Ne7
{[%clk 1:30:33]} Nf3 {[%clk 1:33:30]} Qb6 {[%clk 1:24:06]} Bd3 {[%clk 1:33:32]}
Bxf2+ {[%clk 1:20:21]} Ke2 {[%clk 1:33:59]} Ng6 {[%clk 1:11:42]} h4 {[%clk
1:17:48]} h5 {[%clk 0:48:43]} Qg5 {[%clk 1:18:14]} Bc5 {[%clk 0:47:57]} Bxg6
{[%clk 1:16:21]} Be7 {[%clk 0:47:08]} Qg3 {[%clk 1:15:49]} fxg6 {[%clk 0:47:29]}
Qxg6+ {[%clk 1:16:13]} Kd7 {[%clk 0:46:32]} Qxg7 {[%clk 1:10:45]} Re8 {[%clk
0:44:40]} Nc3 {[%clk 1:09:42]} Nc6 {[%clk 0:43:03]} Rd1 {[%clk 0:54:56]} Kc7
{[%clk 0:38:51]} Rxd5 {[%clk 0:44:40]} Kb8 {[%clk 0:35:14]} Rd3 {[%clk 0:40:28]}
Rd8 {[%clk 0:30:41]} b4 {[%clk 0:38:09]} Bf8 {[%clk 0:19:36]} Qf7 {[%clk
0:36:40]} Rxd3 {[%clk 0:15:42]} cxd3 {[%clk 0:37:03]} Qd8 {[%clk 0:16:01]} Bg5
{[%clk 0:35:33]} Be7 {[%clk 0:16:09]} Rc1 {[%clk 0:33:46]} Bd7 {[%clk 0:13:20]}
Ne4 {[%clk 0:33:47]} a5 {[%clk 0:10:57]} b5 {[%clk 0:32:34]} Bxg5 {[%clk
0:11:14]} hxg5 {[%clk 0:32:21]} Ne7 {[%clk 0:11:14]} Nd4 {[%clk 0:25:54]} Nd5
{[%clk 0:11:08]} Nc5 {[%clk 0:22:54]} Bc8 {[%clk 0:07:55]} Na6+ {[%clk 0:21:40]}
Rxa6 {[%clk 0:07:49]} bxa6 {[%clk 0:21:43]} Qh8 {[%clk 0:05:29]} Nf3 {[%clk
0:19:06]} bxa6 {[%clk 0:05:42]} g6 {[%clk 0:18:36]} Qh6 {[%clk 0:05:22]} Rxc8+
{[%clk 0:18:30]}

[Variant "Standard"]
[Site "Europe Echecs"]

[Event "Open Cappelle-la-Grande"]
[Date "2026.02.25"]
[White "Laignel, Quentin"]
[Black "Bournel, Antoine"]
[WhiteElo "2227"]
[BlackElo "2434"]
[Round "8.8.13"]
[Result "0-1"]
[TimeControl "40/5400+30:1800+30"]

d4 {[%clk 1:30:55]} d5 {[%clk 1:30:38]} Nf3 {[%clk 1:30:27]} e6 {[%clk 1:30:37]}
c4 {[%clk 1:30:21]} c6 {[%clk 1:30:49]} Bg5 {[%clk 1:28:13]} Be7 {[%clk
1:29:49]} Bxe7 {[%clk 1:27:31]} Qxe7 {[%clk 1:30:15]} e3 {[%clk 1:27:12]} Nf6
{[%clk 1:30:17]} Nc3 {[%clk 1:26:17]} O-O {[%clk 1:30:11]} Bd3 {[%clk 1:24:15]}
dxc4 {[%clk 1:26:03]} Bxc4 {[%clk 1:24:35]} Nbd7 {[%clk 1:24:47]} O-O {[%clk
1:22:33]} c5 {[%clk 1:24:42]} Qe2 {[%clk 1:18:30]} cxd4 {[%clk 1:14:15]} exd4
{[%clk 1:13:33]} Nb6 {[%clk 1:11:17]} Bb3 {[%clk 1:12:51]} Rd8 {[%clk 1:09:07]}
Rad1 {[%clk 1:09:56]} Nbd5 {[%clk 0:56:43]} Ne5 {[%clk 1:06:03]} Bd7 {[%clk
0:55:05]} Qf3 {[%clk 1:01:44]} Bc6 {[%clk 0:49:06]} Nxc6 {[%clk 0:59:18]} bxc6
{[%clk 0:49:05]} Na4 {[%clk 0:57:31]} Rab8 {[%clk 0:45:45]} Rc1 {[%clk 0:55:12]}
Qd6 {[%clk 0:44:44]} Rfd1 {[%clk 0:51:09]} h5 {[%clk 0:42:14]} Nc5 {[%clk
0:49:19]} Ne7 {[%clk 0:39:40]} Rc4 {[%clk 0:41:39]} Nf5 {[%clk 0:29:05]} Ne4
{[%clk 0:39:37]} Nxe4 {[%clk 0:28:31]} Qxe4 {[%clk 0:39:58]} c5 {[%clk 0:23:26]}
d5 {[%clk 0:38:44]} g6 {[%clk 0:13:56]} Rcc1 {[%clk 0:36:04]} Rb4 {[%clk
0:13:05]} Qe1 {[%clk 0:30:58]} e5 {[%clk 0:12:17]} Qc3 {[%clk 0:30:27]} Nd4
{[%clk 0:11:30]} Bc4 {[%clk 0:27:38]} Qf6 {[%clk 0:09:39]} Re1 {[%clk 0:27:27]}
h4 {[%clk 0:05:22]} b3 {[%clk 0:25:28]} Kg7 {[%clk 0:04:11]} Re4 {[%clk
0:22:01]} Rh8 {[%clk 0:03:22]} Bf1 {[%clk 0:20:16]} h3 {[%clk 0:01:46]} f4
{[%clk 0:10:07]} hxg2 {[%clk 0:01:50]} Bxg2 {[%clk 0:10:29]} Qxf4 {[%clk
0:01:06]} Rxf4 {[%clk 0:09:26]} Ne2+ {[%clk 0:01:35]} Kf1 {[%clk 0:09:36]} Nxc3
{[%clk 0:01:58]} Rf2 {[%clk 0:09:57]} Nb5 {[%clk 0:01:43]} Rxc5 {[%clk 0:09:34]}
Rxh2 {[%clk 0:00:56]} Rfc2 {[%clk 0:04:23]} Rhh4 {[%clk 0:00:36]} R2c4 {[%clk
0:04:06]} Rbxc4 {[%clk 0:24:00]} Rxc4 {[%clk 0:34:25]} Rd4 {[%clk 0:20:12]} Rc6
{[%clk 0:24:36]} Rd2 {[%clk 0:18:37]} a4 {[%clk 0:23:57]} Nd4 {[%clk 0:18:00]}
Ra6 {[%clk 0:22:59]} f5 {[%clk 0:15:25]} Rxa7+ {[%clk 0:22:29]} Kf6 {[%clk
0:15:12]} d6 {[%clk 0:17:41]} e4 {[%clk 0:14:34]} d7 {[%clk 0:17:11]} Ke7 {[%clk
0:13:08]} Ra5 {[%clk 0:09:25]} Kxd7 {[%clk 0:12:56]} Bxe4 {[%clk 0:08:35]} fxe4
{[%clk 0:13:06]} Re5 {[%clk 0:09:00]} Nxb3 {[%clk 0:08:00]} Rxe4 {[%clk
0:09:23]} Rd4 {[%clk 0:08:03]} Re3 {[%clk 0:09:35]} Nc5 {[%clk 0:08:23]} a5
{[%clk 0:08:28]} Rd6 {[%clk 0:08:42]} Re5 {[%clk 0:08:05]} Nb7 {[%clk 0:08:47]}
Rb5 {[%clk 0:07:36]} Kc7 {[%clk 0:08:33]} Kg2 {[%clk 0:06:08]} Ra6 {[%clk
0:08:55]} Kg3 {[%clk 0:05:20]} Rxa5 {[%clk 0:09:11]}

[Variant "Standard"]
[Site "Europe Echecs"]

[Event "Open Cappelle-la-Grande"]
[Date "2026.02.25"]
[White "Plaidit, Hugo"]
[Black "Wirig, Anthony"]
[WhiteElo "2223"]
[BlackElo "2414"]
[Round "8.8.14"]
[Result "1/2-1/2"]
[TimeControl "40/5400+30:1800+30"]

e4 {[%clk 1:30:56]} c5 {[%clk 1:30:18]} Nf3 {[%clk 1:31:19]} Nc6 {[%clk
1:30:20]} Bb5 {[%clk 1:31:28]} Nd4 {[%clk 1:30:28]} Nxd4 {[%clk 1:29:12]} cxd4
{[%clk 1:30:01]} c3 {[%clk 1:29:08]} a6 {[%clk 1:30:25]} Ba4 {[%clk 1:28:55]}
Nf6 {[%clk 1:26:18]} d3 {[%clk 1:26:27]} dxc3 {[%clk 1:24:29]} Nxc3 {[%clk
1:26:39]} b5 {[%clk 1:24:22]} Bb3 {[%clk 1:27:03]} d6 {[%clk 1:24:17]} O-O
{[%clk 1:23:05]} e6 {[%clk 1:23:42]} a3 {[%clk 1:12:14]} Be7 {[%clk 1:22:03]} d4
{[%clk 1:10:30]} O-O {[%clk 1:19:46]} Be3 {[%clk 1:01:07]} Rb8 {[%clk 1:11:38]}
d5 {[%clk 0:51:43]} e5 {[%clk 1:11:13]} Bc2 {[%clk 0:48:13]} Ng4 {[%clk
1:08:40]} Bd2 {[%clk 0:43:43]} Bg5 {[%clk 1:07:29]} Bd3 {[%clk 0:37:43]} g6
{[%clk 0:45:05]} Qc1 {[%clk 0:33:39]} Bxd2 {[%clk 0:39:30]} Qxd2 {[%clk
0:33:42]} Qh4 {[%clk 0:38:17]} h3 {[%clk 0:34:06]} Nf6 {[%clk 0:38:36]} Ne2
{[%clk 0:18:02]} b4 {[%clk 0:24:32]} Ng3 {[%clk 0:16:36]} Qf4 {[%clk 0:19:07]}
Qe2 {[%clk 0:15:25]} h5 {[%clk 0:18:03]} Rfe1 {[%clk 0:13:14]} a5 {[%clk
0:16:20]} axb4 {[%clk 0:12:11]} axb4 {[%clk 0:16:38]} Rec1 {[%clk 0:11:15]} Bd7
{[%clk 0:13:36]} Rc7 {[%clk 0:08:25]} Rfc8 {[%clk 0:13:02]} Raa7 {[%clk
0:08:44]} Rxc7 {[%clk 0:13:01]} Rxc7 {[%clk 0:09:12]} Ra8 {[%clk 0:08:41]} Rb7
{[%clk 0:08:13]} h4 {[%clk 0:07:27]} Nf1 {[%clk 0:08:35]} Ra1 {[%clk 0:06:53]}
Rxb4 {[%clk 0:07:19]} g5 {[%clk 0:07:22]} Qe3 {[%clk 0:06:07]} Qxe3 {[%clk
0:07:11]} fxe3 {[%clk 0:06:35]} g4 {[%clk 0:07:30]} hxg4 {[%clk 0:06:26]} Bxg4
{[%clk 0:07:33]} Rb6 {[%clk 0:05:28]} Rd1 {[%clk 0:07:28]} Rxd6 {[%clk 0:04:45]}
Kg7 {[%clk 0:07:57]} Bc2 {[%clk 0:03:21]} Rc1 {[%clk 0:08:20]} Bd3 {[%clk
0:03:46]} Rd1 {[%clk 0:08:38]} Bc2 {[%clk 0:01:24]} Rc1 {[%clk 0:08:54]} Bd3
{[%clk 0:01:39]} Rd1 {[%clk 0:07:30]}

[Variant "Standard"]
[Site "Europe Echecs"]

[Event "Open Cappelle-la-Grande"]
[Date "2026.02.25"]
[White "Bassini, Emile"]
[Black "Le Geay, Joachim"]
[WhiteElo "2409"]
[BlackElo "2182"]
[Round "8.8.15"]
[Result "1-0"]
[TimeControl "40/5400+30:1800+30"]

c4 {[%clk 1:30:57]} g6 {[%clk 1:30:54]} Nf3 {[%clk 1:29:40]} Bg7 {[%clk
1:31:18]} Nc3 {[%clk 1:30:05]} d6 {[%clk 1:31:30]} d4 {[%clk 1:29:26]} Nf6
{[%clk 1:31:54]} e4 {[%clk 1:29:33]} O-O {[%clk 1:32:18]} h3 {[%clk 1:29:53]} e5
{[%clk 1:32:31]} d5 {[%clk 1:30:19]} Nh5 {[%clk 1:32:57]} g3 {[%clk 1:29:57]} f5
{[%clk 1:31:47]} exf5 {[%clk 1:30:19]} gxf5 {[%clk 1:32:11]} Nh4 {[%clk
1:30:05]} Nf6 {[%clk 1:31:27]} Bd3 {[%clk 1:25:33]} e4 {[%clk 1:27:06]} Be2
{[%clk 1:24:44]} Na6 {[%clk 1:19:49]} Be3 {[%clk 0:57:18]} Nc5 {[%clk 1:16:23]}
Qd2 {[%clk 0:55:52]} Nfd7 {[%clk 1:13:46]} Ng2 {[%clk 0:49:58]} Ne5 {[%clk
1:05:31]} Bxc5 {[%clk 0:48:30]} dxc5 {[%clk 1:02:32]} O-O-O {[%clk 0:45:32]} Nf7
{[%clk 0:58:57]} Kb1 {[%clk 0:45:06]} Nd6 {[%clk 0:57:04]} Nf4 {[%clk 0:28:13]}
Qg5 {[%clk 0:47:14]} Qe3 {[%clk 0:23:16]} b6 {[%clk 0:44:42]} Kc2 {[%clk
0:23:31]} Bd7 {[%clk 0:35:36]} b3 {[%clk 0:22:31]} a5 {[%clk 0:33:54]} a4 {[%clk
0:20:21]} Rae8 {[%clk 0:29:42]} Bh5 {[%clk 0:19:20]} Rd8 {[%clk 0:27:57]} Rhg1
{[%clk 0:18:07]} Qf6 {[%clk 0:24:23]} Be2 {[%clk 0:17:40]} Bh6 {[%clk 0:23:19]}
Nh5 {[%clk 0:16:16]} Qg6 {[%clk 0:21:35]} Nf4 {[%clk 0:16:39]} Qf7 {[%clk
0:21:02]} Bh5 {[%clk 0:14:22]} Qe7 {[%clk 0:20:54]} Nce2 {[%clk 0:13:45]} Qe5
{[%clk 0:17:34]} Nc3 {[%clk 0:09:06]} Bg7 {[%clk 0:17:03]} Be2 {[%clk 0:09:07]}
Nf7 {[%clk 0:14:27]} g4 {[%clk 0:07:23]} fxg4 {[%clk 0:12:37]} Bxg4 {[%clk
0:07:46]} Bxg4 {[%clk 0:12:49]} Rxg4 {[%clk 0:08:14]} Nh6 {[%clk 0:12:14]} Rxg7+
{[%clk 0:08:42]} Qxg7 {[%clk 0:12:37]} Ne6 {[%clk 0:08:44]} Nf5 {[%clk 0:12:59]}
Qxe4 {[%clk 0:08:08]} Nd6 {[%clk 0:12:24]} Qd3 {[%clk 0:03:35]} Qf6 {[%clk
0:09:26]} Nxd8 {[%clk 0:02:32]} Rxd8 {[%clk 0:08:51]} Nb5 {[%clk 0:21:43]} Nxb5
{[%clk 0:34:27]} axb5 {[%clk 0:22:11]} Qxf2+ {[%clk 0:34:38]} Rd2 {[%clk
0:22:34]} Qf6 {[%clk 0:34:27]} Rg2+ {[%clk 0:20:29]} Kh8 {[%clk 0:34:48]} Qc3
{[%clk 0:20:56]} Rf8 {[%clk 0:32:49]} Rg3 {[%clk 0:21:03]} Qxc3+ {[%clk
0:30:16]} Kxc3 {[%clk 0:21:28]} Rf4 {[%clk 0:29:48]} Re3 {[%clk 0:21:04]} Rf7
{[%clk 0:19:01]} Re6 {[%clk 0:17:43]} Kg7 {[%clk 0:14:30]} Kd3 {[%clk 0:10:20]}
Rf3+ {[%clk 0:05:31]} Re3 {[%clk 0:10:33]} Rf7 {[%clk 0:04:58]} Re6 {[%clk
0:11:02]} Rf3+ {[%clk 0:05:22]} Ke4 {[%clk 0:11:29]} Rxh3 {[%clk 0:05:02]} Re7+
{[%clk 0:11:53]} Kf6 {[%clk 0:05:27]} Rxc7 {[%clk 0:12:21]} Rh4+ {[%clk
0:05:33]} Kd3 {[%clk 0:07:13]} Rh3+ {[%clk 0:05:52]} Kc2 {[%clk 0:07:25]} Rh2+
{[%clk 0:06:11]} Kc3 {[%clk 0:06:47]} Rh3+ {[%clk 0:03:42]} Kb2 {[%clk 0:06:34]}
Ke5 {[%clk 0:00:42]} Rc6 {[%clk 0:02:41]} a4 {[%clk 0:00:33]} bxa4 {[%clk
0:02:30]} Rh2+ {[%clk 0:01:00]} Kc3 {[%clk 0:02:46]} Rh3+ {[%clk 0:01:26]} Kc2
{[%clk 0:01:51]} Rh2+ {[%clk 0:01:44]} Kd3 {[%clk 0:02:15]} Rh3+ {[%clk
0:02:09]} Ke2 {[%clk 0:02:20]} Rh2+ {[%clk 0:02:24]} Kf3 {[%clk 0:02:36]} Rh3+
{[%clk 0:02:13]} Kg2 {[%clk 0:02:50]} Ra3 {[%clk 0:01:49]} Rxb6 {[%clk 0:01:07]}
Rxa4 {[%clk 0:02:14]} Re6+ {[%clk 0:01:12]} Kd4 {[%clk 0:01:27]} d6 {[%clk
0:01:25]} Ra2+ {[%clk 0:00:31]} Kf3 {[%clk 0:01:30]}

[Variant "Standard"]
[Site "Europe Echecs"]